lending/lending_fUSD_20251106
["ID","MTS","AMOUNT","RATE_DAILY","PERIOD"]
[393305204,1762443055278,-151.0,0.00017836,2]
[393305205,1762443055290,-151.0,0.00017836,2]
[393305206,1762443055300,-2000.0,0.00017849,2]
[393305207,1762443055309,-2000.0,0.00017852,2]
[393305208,1762443055319,-200.0,0.00017852,2]
[393305209,1762443055330,-2000.0,0.00017853,2]
[393305210,1762443055339,-2000.0,0.00017855,2]
[393305211,1762443055349,-200.0,0.00017855,2]
[393305212,1762443055360,-176.193,0.00017862,2]
[393305213,1762443055370,-2552.107,0.00017862,2]
[393305214,1762443055379,-300.0,0.00017862,2]
[393305215,1762443055388,-929.0,0.00017867,2]
[393305216,1762443055397,-171.38085205,0.0001788,2]
[393305217,1762443055407,-179.88656257,0.0001788,2]
[393305218,1762443055416,-2744.9989,0.00017887,2]
[393305219,1762443055426,-150.0,0.00017895,2]
[393305220,1762443055436,-500.0,0.00017895,2]
[393305221,1762443055445,-208.52920862,0.00017895,2]
[393305222,1762443055456,-500.0,0.00017895,2]
[393305223,1762443055466,-150.0,0.00017895,2]
[393305224,1762443055476,-150.0,0.00017895,2]
[393305225,1762443055486,-383.1495843,0.00017895,2]
[393305226,1762443055495,-150.0,0.00017895,2]
[393305227,1762443055505,-500.0,0.000179,3]
[393305228,1762443055515,-150.0,0.000179,2]
[393305229,1762443055525,-262.99860912,0.000179,2]
[393305230,1762443055534,-226.78705661,0.000179,2]
[393305231,1762443055544,-8832.36064571,0.000179,2]
[393305232,1762443055555,-409.83724694,0.000179,2]
[393305233,1762443055564,-1552.0,0.00017901,2]
[393305234,1762443055574,-500.0,0.00017911,2]
[393305235,1762443055584,-500.0,0.00017911,2]
[393305236,1762443055594,-150.0,0.00017911,2]
[393305237,1762443055604,-150.0,0.00017911,2]
[393305238,1762443055615,-500.0,0.00017911,2]
[393305239,1762443055626,-300.0,0.00017911,2]
[393305240,1762443055635,-500.0,0.00017923,2]
[393305241,1762443055645,-500.0,0.00017945,2]
[393305242,1762443055655,-329.0,0.00017945,2]
[393305243,1762443055664,-164.395105,0.00017951,2]
[393305244,1762443055673,-151.0,0.00017951,2]
[393305245,1762443055683,-158.658734,0.00017951,2]
[393305246,1762443055692,-151.0,0.00017951,2]
[393305247,1762443055702,-332.083751,0.00017951,2]
[393305248,1762443055711,-332.083751,0.00017951,2]
[393305249,1762443055722,-151.0,0.00017951,2]
[393305250,1762443055731,-332.083751,0.00017951,2]
[393305251,1762443055740,-332.083751,0.00017951,2]
[393305252,1762443055750,-151.0,0.00017951,2]
[393305253,1762443055759,-151.0,0.00017951,2]
[393305254,1762443055769,-192.225871,0.00017951,2]
[393305255,1762443055779,-151.0,0.00017951,2]
[393305256,1762443055788,-151.0,0.00017951,2]
[393305257,1762443055797,-151.0,0.00017951,2]
[393305258,1762443055807,-1596.0,0.00017951,2]
[393305259,1762443055816,-820.0,0.00017951,2]
[393305260,1762443055825,-1273.0,0.00017951,2]
[393305261,1762443055834,-849.381,0.00017951,2]
[393305262,1762443055843,-1188.0,0.00017951,2]
[393305263,1762443055853,-905.0,0.00017951,2]
[393305264,1762443055863,-362.35,0.00017959,2]
[393305265,1762443055872,-500.0,0.0001796,2]
[393305266,1762443055881,-500.0,0.0001796,2]
[393305267,1762443055890,-684.0,0.0001796,2]
[393305268,1762443055900,-421.0,0.0001796,2]
[393305269,1762443055910,-456.64145389,0.0001796,2]
[393305270,1762443055920,-500.0,0.0001796,2]
[393305271,1762443055930,-500.0,0.0001796,2]
[393305272,1762443055940,-1161.08543762,0.0001797,2]
[393305273,1762443055951,-500.0,0.00017972,2]
[393305274,1762443055962,-500.0,0.00017972,2]
[393305275,1762443055972,-500.0,0.00017972,2]
[393305276,1762443055982,-500.0,0.00017972,2]
[393305277,1762443055992,-500.0,0.00017973,2]
[393305278,1762443056001,-500.0,0.00017973,2]
[393305279,1762443056012,-150.13919962,0.00017973,2]
[393305280,1762443056021,-500.0,0.00017973,2]
[393305281,1762443056032,-161.44513731,0.00017973,2]
[393305282,1762443056043,-500.0,0.00017973,2]
[393305283,1762443056052,-500.0,0.00017973,2]
[393305284,1762443056061,-419.7902568,0.00017973,2]
[393305285,1762443056071,-160.41796336,0.00017973,2]
[393305286,1762443056080,-500.0,0.00017973,2]
[393305287,1762443056090,-500.0,0.00017973,2]
[393305288,1762443056099,-500.0,0.00017973,2]
[393305289,1762443056108,-537.03503574,0.00017973,2]
[393305290,1762443056117,-500.0,0.00017973,2]
[393305291,1762443056127,-500.0,0.00017973,2]
[393305292,1762443056136,-500.0,0.00017973,2]
[393305293,1762443056145,-506.28852507,0.00017973,2]
[393305294,1762443056155,-151.0,0.00017973,2]
[393305295,1762443056164,-322.896318,0.00017973,2]
[393305296,1762443056174,-322.896318,0.00017973,2]
[393305297,1762443056183,-322.896318,0.00017973,2]
[393305298,1762443056193,-322.896318,0.00017973,2]
[393305299,1762443056205,-160.108682,0.00017973,2]
[393305300,1762443056214,-151.0,0.00017973,2]
[393305301,1762443056225,-151.0,0.00017973,2]
[393305302,1762443056235,-151.0,0.00017973,2]
[393305303,1762443056244,-1304.90558406,0.00017979,5]
[393305304,1762443056254,-1304.90558406,0.00017979,5]
[393305305,1762443056263,-300.0,0.00017979,2]
[393305306,1762443056273,-666.0,0.00017979,2]
[393305307,1762443056281,-666.0,0.00017979,2]
[393305308,1762443056295,-152.776652,0.00017979,2]
[393305309,1762443056304,-151.0,0.00017979,2]
[393305310,1762443056313,-151.0,0.00017979,2]
[393305311,1762443056322,-151.0,0.00017979,2]
[393305312,1762443056333,-264.317884,0.00017979,2]
[393305313,1762443056342,-151.0,0.00017979,2]
[393305314,1762443056352,-228.3856211,0.00017979,2]
[393305315,1762443056364,-331.981782,0.00017979,2]
[393305316,1762443056374,-300.0,0.00017979,3]
[393305317,1762443056383,-300.0,0.00017979,3]
[393305318,1762443056393,-300.0,0.00017979,3]
[393305319,1762443056403,-300.0,0.00017979,3]
[393305320,1762443056412,-300.0,0.00017979,3]
[393305321,1762443056421,-331.981782,0.00017979,2]
[393305322,1762443056431,-331.981782,0.00017979,2]
[393305323,1762443056441,-331.981782,0.00017979,2]
[393305324,1762443056452,-151.0,0.00017979,2]
[393305325,1762443056465,-296.87113101,0.00017979,2]
[393305326,1762443056475,-666.0,0.00017979,2]
[393305327,1762443056485,-1393042.58509999,0.0001798,2]
[393305328,1762443056495,-151.0,0.0001798,2]
[393305329,1762443056505,-151.0,0.0001798,2]
[393305330,1762443056515,-151.0,0.0001798,2]
[393305331,1762443056526,-151.0,0.0001798,2]
[393305332,1762443056536,-151.0,0.0001798,2]
[393305333,1762443056545,-151.0,0.0001798,2]
[393305334,1762443056555,-151.0,0.0001798,2]
[393305335,1762443056564,-151.0,0.0001798,2]
[393305336,1762443056574,-151.0,0.0001798,2]
[393305337,1762443056584,-152.790274,0.0001798,2]
[393305338,1762443056593,-151.0,0.0001798,2]
[393305339,1762443056603,-151.0,0.0001798,2]
[393305340,1762443056612,-151.0,0.0001798,2]
[393305341,1762443056621,-160.422744,0.0001798,2]
[393305342,1762443056631,-151.0,0.0001798,2]
[393305343,1762443056640,-151.0,0.0001798,2]
[393305344,1762443056650,-151.0,0.0001798,2]
[393305345,1762443056659,-151.0,0.0001798,2]
[393305346,1762443056668,-169.69964,0.0001798,2]
[393305347,1762443056677,-151.0,0.0001798,2]
[393305348,1762443056687,-151.0,0.0001798,2]
[393305349,1762443056696,-151.0,0.0001798,2]
[393305350,1762443056707,-151.0,0.0001798,2]
[393305351,1762443056716,-151.0,0.0001798,2]
[393305352,1762443056725,-296.732271,0.0001798,2]
[393305353,1762443056736,-152.138568,0.0001798,2]
[393305354,1762443056746,-151.0,0.0001798,2]
[393305355,1762443056755,-151.0,0.0001798,2]
[393305356,1762443056764,-151.0,0.0001798,2]
[393305357,1762443056774,-331.981782,0.0001798,2]
[393305358,1762443056783,-331.981782,0.0001798,2]
[393305359,1762443056792,-331.981782,0.0001798,2]
[393305360,1762443056801,-331.981782,0.0001798,2]
[393305361,1762443056810,-151.0,0.0001798,2]
[393305362,1762443056819,-151.0,0.0001798,2]
[393305363,1762443056829,-322.896318,0.0001798,2]
[393305364,1762443056838,-322.896318,0.0001798,2]
[393305365,1762443056847,-322.896318,0.0001798,2]
[393305366,1762443056856,-322.896311,0.0001798,2]
[393305367,1762443056865,-151.0,0.0001798,2]
[393305368,1762443056875,-151.0,0.0001798,2]
[393305369,1762443056885,-151.0,0.0001798,2]
[393305370,1762443056895,-151.0,0.0001798,2]
[393305371,1762443056904,-332.083751,0.0001798,2]
[393305372,1762443056914,-332.083751,0.0001798,2]
[393305373,1762443056924,-151.0,0.0001798,2]
[393305374,1762443056933,-332.083751,0.0001798,2]
[393305375,1762443056943,-332.083756,0.0001798,2]
[393305376,1762443056953,-167.481282,0.0001798,2]
[393305377,1762443056963,-172.564574,0.0001798,2]
[393305378,1762443056972,-500.0,0.00017982,2]
[393305379,1762443056981,-500.0,0.00017982,2]
[393305380,1762443056991,-1724.82,0.00017982,2]
[393305381,1762443057000,-1724.82,0.00017982,2]
[393305382,1762443057009,-1724.82,0.00017982,2]
[393305383,1762443057018,-500.0,0.00017982,2]
[393305384,1762443057027,-500.0,0.00017982,2]
[393305385,1762443057036,-500.0,0.00017982,2]
[393305386,1762443057046,-517.47400377,0.00017982,2]
[393305387,1762443057055,-500.0,0.00017982,2]
[393305388,1762443057064,-408.1311233,0.00017982,2]
[393305389,1762443057074,-300.0,0.00017982,2]
[393305390,1762443057083,-666.0,0.00017982,2]
[393305391,1762443057093,-500.0,0.00017982,2]
[393305392,1762443057102,-19497.019313,0.00017983,2]
[393305393,1762443057111,-5152.69946299,0.00017983,2]
[393305394,1762443057299,-298.79780336,0.00017983,2]
[393305395,1762443057312,-246.93931005,0.00017983,2]
[393305396,1762443057322,-151.0,0.00017983,2]
[393305397,1762443057332,-159.614197,0.00017983,2]
[393305398,1762443057341,-151.0,0.00017983,2]
[393305399,1762443057351,-282.563176,0.00017983,2]
[393305400,1762443057361,-151.0,0.00017983,2]
[393305401,1762443057371,-151.0,0.00017983,2]
[393305402,1762443057380,-100.08331655,0.00017983,2]
[393305403,1762443057525,-358.79,0.00017181,2]
[393305404,1762443057535,-358.8,0.00017318,2]
[393305405,1762443057544,-151.0,0.00017421,2]
[393305406,1762443057554,-151.0,0.00017421,2]
[393305407,1762443057563,-151.0,0.00017422,2]
[393305408,1762443057572,-151.0,0.00017422,2]
[393305409,1762443057582,-151.0,0.0001752,2]
[393305410,1762443057591,-50.91668345,0.00017983,2]
[393305411,1762443057755,-151.0,0.00017983,2]
[393305412,1762443057767,-151.0,0.00017983,2]
[393305413,1762443057776,-151.0,0.00017983,2]
[393305414,1762443057785,-151.0,0.00017983,2]
[393305415,1762443057794,-151.0,0.00017983,2]
[393305416,1762443057803,-151.0,0.00017983,2]
[393305417,1762443057813,-151.0,0.00017983,2]
[393305418,1762443057822,-151.0,0.00017983,2]
[393305419,1762443057831,-151.000022,0.00017983,2]
[393305420,1762443057840,-151.0,0.00017983,2]
[393305421,1762443057850,-151.0,0.00017983,2]
[393305422,1762443057859,-151.0,0.00017983,2]
[393305423,1762443057868,-153.23437,0.00017983,2]
[393305424,1762443057877,-156.005471,0.00017983,2]
[393305425,1762443057887,-260.606733,0.00017983,2]
[393305426,1762443057896,-331.981782,0.00017983,2]
[393305427,1762443057909,-331.981782,0.00017983,2]
[393305428,1762443057919,-331.981782,0.00017983,2]
[393305429,1762443057928,-331.981783,0.00017983,2]
[393305430,1762443057938,-666.0,0.00017986,2]
[393305431,1762443057947,-500.0,0.00017986,2]
[393305432,1762443057957,-151.0,0.00017987,2]
[393305433,1762443057966,-151.016871,0.00017987,2]
[393305434,1762443057975,-151.0,0.00017987,2]
[393305435,1762443057984,-151.0,0.00017987,2]
[393305436,1762443057993,-151.0,0.00017987,2]
[393305437,1762443058002,-151.0,0.00017987,2]
[393305438,1762443058012,-151.0,0.00017987,2]
[393305439,1762443058021,-151.0,0.00017987,2]
[393305440,1762443058030,-206.347297,0.00017987,2]
[393305441,1762443058039,-151.0,0.00017987,2]
[393305442,1762443058048,-156.220974,0.00017987,2]
[393305443,1762443058059,-164.754495,0.00017987,2]
[393305444,1762443058068,-151.0,0.00017987,2]
[393305445,1762443058078,-151.0,0.00017987,2]
[393305446,1762443058088,-193.93595469,0.00017987,2]
[393305447,1762443058097,-180.20244572,0.00017989,2]
[393305448,1762443058107,-500.0,0.0001799,2]
[393305449,1762443058116,-1161.08543762,0.0001799,2]
[393305450,1762443058125,-500.0,0.00017996,2]
[393305451,1762443058134,-500.0,0.00017998,2]
[393305452,1762443058143,-1724.82,0.00017998,2]
[393305453,1762443058152,-500.0,0.00017998,2]
[393305454,1762443058161,-1818.66460471,0.00017999,5]
[393305455,1762443058170,-1614.54732073,0.00017999,5]
[393305456,1762443058200,-204.11728398,0.00017999,5]
[393305457,1762443058211,-324.45708432,0.00017999,5]
[393305458,1762443058222,-1494.20752039,0.00017999,5]
[393305459,1762443058231,-294.63631886,0.00017999,5]
[393305460,1762443058404,-151.0,0.00017421,2]
[393305461,1762443058417,-151.0,0.00017521,2]
[393305462,1762443058427,-165.173442,0.00017521,2]
[393305463,1762443058436,-1591.33497033,0.00017651,2]
[393305464,1762443058447,-5066.66502967,0.00017651,2]
[393305465,1762443058457,-1524.02828585,0.00017999,5]
[393305466,1762443058466,-1689.5574989,0.00017999,5]
[393305467,1762443058478,-129.10710581,0.00017999,5]
[393305468,1762443058488,-555.93364397,0.00017999,5]
[393305469,1762443058499,-257.920304,0.00017999,5]
[393305470,1762443058521,-791.07285415,0.00017999,5]
[393305471,1762443058533,-213.73780259,0.00017999,5]
[393305472,1762443058542,-1818.66460471,0.00017999,5]
[393305473,1762443058552,-1818.66460471,0.00017999,5]
[393305474,1762443058561,-1818.66460471,0.00017999,5]
[393305475,1762443058571,-1818.66460475,0.00017999,5]
[393305476,1762443058581,-1818.66460471,0.00017999,5]
[393305477,1762443058590,-1818.66460471,0.00017999,5]
[393305478,1762443058600,-500.0,0.00017999,2]
[393305479,1762443058609,-500.0,0.00017999,2]
[393305480,1762443058619,-500.0,0.00017999,2]
[393305481,1762443058628,-500.0,0.00017999,2]
[393305482,1762443058638,-500.0,0.00017999,2]
[393305483,1762443058647,-500.0,0.00017999,2]
[393305484,1762443058656,-500.0,0.00017999,2]
[393305485,1762443058668,-500.0,0.00017999,2]
[393305486,1762443058677,-500.0,0.00017999,2]
[393305487,1762443058688,-500.0,0.00017999,2]
[393305488,1762443058699,-500.0,0.00017999,2]
[393305489,1762443058712,-500.0,0.00017999,2]
[393305490,1762443058722,-500.0,0.00017999,2]
[393305491,1762443058732,-500.0,0.00017999,2]
[393305492,1762443058742,-461.84,0.00017999,2]
[393305493,1762443058752,-500.0,0.00017999,2]
[393305494,1762443058762,-500.0,0.00017999,2]
[393305495,1762443058771,-500.0,0.00017999,2]
[393305496,1762443058780,-500.0,0.00017999,2]
[393305497,1762443058790,-500.0,0.00017999,2]
[393305498,1762443058799,-500.0,0.00017999,2]
[393305499,1762443058819,-500.0,0.00017999,2]
[393305500,1762443058828,-500.0,0.00017999,2]
[393305501,1762443058838,-500.0,0.00017999,2]
[393305502,1762443058847,-500.0,0.00017999,2]
[393305503,1762443058856,-500.0,0.00017999,2]
[393305504,1762443058866,-500.0,0.00017999,2]
[393305505,1762443058875,-500.0,0.00017999,2]
[393305506,1762443058884,-500.0,0.00017999,2]
[393305507,1762443058893,-500.0,0.00017999,2]
[393305508,1762443058902,-611.26319318,0.00017999,2]
[393305509,1762443058911,-1000.684,0.00017999,2]
[393305510,1762443058920,-500.0,0.00017999,2]
[393305511,1762443058929,-500.0,0.00017999,2]
[393305512,1762443058939,-500.0,0.00017999,2]
[393305513,1762443058948,-500.0,0.00017999,2]
[393305514,1762443058959,-230.92,0.00017999,2]
[393305515,1762443058968,-151.0,0.00017999,2]
[393305516,1762443058977,-151.0,0.00017999,2]
[393305517,1762443058988,-151.0,0.00017999,2]
[393305518,1762443058996,-151.0,0.00017999,2]
[393305519,1762443059006,-151.0,0.00017999,2]
[393305520,1762443059015,-151.0,0.00017999,2]
[393305521,1762443059025,-151.0,0.00017999,2]
[393305522,1762443059034,-150.0,0.00017999,2]
[393305523,1762443059043,-163.279486,0.00017999,2]
[393305524,1762443059054,-1724.82,0.00017999,2]
[393305525,1762443059063,-1724.82,0.00017999,2]
[393305526,1762443059072,-1724.82,0.00017999,2]
[393305527,1762443059081,-1724.82,0.00017999,2]
[393305528,1762443059090,-1724.82,0.00017999,2]
[393305529,1762443059100,-1724.82,0.00017999,2]
[393305530,1762443059109,-1724.82,0.00017999,2]
[393305531,1762443059118,-1724.82,0.00017999,2]
[393305532,1762443059127,-1724.82,0.00017999,2]
[393305533,1762443059136,-1724.82,0.00017999,2]
[393305534,1762443059145,-1724.82,0.00017999,2]
[393305535,1762443059154,-1724.82,0.00017999,2]
[393305536,1762443059163,-1724.82,0.00017999,2]
[393305537,1762443059173,-1724.82,0.00017999,2]
[393305538,1762443059182,-1724.82,0.00017999,2]
[393305539,1762443059192,-1724.82,0.00017999,2]
[393305540,1762443059202,-1724.82,0.00017999,2]
[393305541,1762443059212,-1724.82,0.00017999,2]
[393305542,1762443059221,-1724.82,0.00017999,2]
[393305543,1762443059230,-1724.8675167,0.00017999,2]
[393305544,1762443059240,-500.0,0.00017999,2]
[393305545,1762443059249,-500.0,0.00017999,2]
[393305546,1762443059259,-500.0,0.00017999,2]
[393305547,1762443059268,-500.0,0.00017999,2]
[393305548,1762443059277,-500.0,0.00017999,2]
[393305549,1762443059291,-500.0,0.00017999,2]
[393305550,1762443059300,-500.0,0.00017999,2]
[393305551,1762443059311,-500.0,0.00017999,2]
[393305552,1762443059321,-500.0,0.00017999,2]
[393305553,1762443059330,-500.0,0.00017999,2]
[393305554,1762443059339,-500.0,0.00017999,2]
[393305555,1762443059349,-500.0,0.00017999,2]
[393305556,1762443059359,-500.0,0.00017999,2]
[393305557,1762443059369,-500.0,0.00017999,2]
[393305558,1762443059379,-500.0,0.00017999,2]
[393305559,1762443059389,-500.0,0.00017999,2]
[393305560,1762443059398,-500.0,0.00017999,2]
[393305561,1762443059408,-500.0,0.00017999,2]
[393305562,1762443059417,-500.0,0.00017999,2]
[393305563,1762443059426,-403.72879056,0.00017999,2]
[393305564,1762443059436,-150.0,0.00017999,2]
[393305565,1762443059446,-150.0,0.00017999,2]
[393305566,1762443059457,-150.0,0.00017999,2]
[393305567,1762443059466,-150.0,0.00017999,2]
[393305568,1762443059476,-150.0,0.00017999,2]
[393305569,1762443059485,-150.0,0.00017999,2]
[393305570,1762443059494,-150.0,0.00017999,2]
[393305571,1762443059504,-283.616,0.00017999,2]
[393305572,1762443059513,-150.0,0.00017999,2]
[393305573,1762443059523,-5046.0,0.00018,2]
[393305574,1762443059534,-77131.45506197,0.00018,2]
[393305575,1762443059585,-535.07813046,0.00018,2]
[393305576,1762443059596,-617.22492729,0.00018,2]
[393305577,1762443074708,15000.0,0.00038653,30]
[393305578,1762443084472,500.0,0.00014999,2]
[393305579,1762443084519,216.79720267,0.00014999,2]
[393305580,1762443100695,552.0,0.00030137,120]
[393305583,1762443176170,500.0,0.00038653,120]
[393305584,1762443176543,500.0,0.00038653,120]
[393305585,1762443176954,500.0,0.00038653,120]
[393305586,1762443177323,500.0,0.00038653,120]
[393305587,1762443177733,500.0,0.00038653,120]
[393305588,1762443178153,500.0,0.00038653,120]
[393305589,1762443178525,500.0,0.00038653,120]
[393305590,1762443178903,500.0,0.00038653,120]
[393305591,1762443179266,383.69126213,0.00038653,120]
[393305592,1762443189385,156.0,0.00030136,120]
[393305593,1762443288624,2904.72,0.00038653,120]
[393305594,1762443288992,2904.72,0.00038653,120]
[393305595,1762443289382,2904.72,0.00038653,120]
[393305596,1762443289799,2904.72,0.00038653,120]
[393305597,1762443290177,2904.72,0.00038653,120]
[393305598,1762443290851,2904.72,0.00038653,120]
[393305599,1762443290957,2904.72,0.00038653,120]
[393305600,1762443291330,2904.72,0.00038653,120]
[393305601,1762443291713,2904.72,0.00038653,120]
[393305602,1762443292079,2904.72,0.00038653,120]
[393305603,1762443292455,2904.72,0.00038653,120]
[393305604,1762443293190,2904.72,0.00038653,120]
[393305605,1762443293600,2904.72,0.00038653,120]
[393305606,1762443293995,2904.72,0.00038653,120]
[393305607,1762443294388,2904.72,0.00038653,120]
[393305608,1762443294817,2904.72,0.00038653,120]
[393305609,1762443295227,2904.72,0.00038653,120]
[393305610,1762443295629,2904.72,0.00038653,120]
[393305611,1762443296115,2904.72,0.00038653,120]
[393305612,1762443296522,2904.72,0.00038653,120]
[393305613,1762443296867,2904.72,0.00038653,120]
[393305614,1762443297261,2904.72,0.00038653,120]
[393305615,1762443297641,2904.72,0.00038653,120]
[393305616,1762443298039,2904.86454457,0.00038653,120]
[393305617,1762443381112,949.13422107,0.0003866,30]
[393305618,1762443612238,156.01,8.327e-05,2]
[393305619,1762443612458,156.01,8.898e-05,2]
[393305620,1762443612676,156.01,9.469e-05,2]
[393305621,1762443612901,156.01,0.00010041,2]
[393305622,1762443613123,156.01,0.00010612,2]
[393305623,1762443613326,156.01,0.00011184,2]
[393305624,1762443613531,156.01,0.00011755,2]
[393305625,1762443613721,156.01,0.00012327,2]
[393305626,1762443613926,156.01,0.00012898,2]
[393305627,1762443614130,156.01,0.00013469,2]
[393305628,1762443614386,156.01,0.00014041,2]
[393305629,1762443614592,156.01,0.00014612,2]
[393305654,1762443835875,280.0,0.0003,120]
[393305655,1762443869214,1340.48,0.00038639,120]
[393305656,1762443869596,1340.48,0.00038639,120]
[393305657,1762443869983,1340.48,0.00038639,120]
[393305658,1762443870361,1340.48,0.00038639,120]
[393305659,1762443870747,1340.48,0.00038639,120]
[393305660,1762443871128,1340.48,0.00038639,120]
[393305661,1762443871504,1340.48,0.00038639,120]
[393305662,1762443871947,1340.48,0.00038639,120]
[393305663,1762443872313,1340.48,0.00038639,120]
[393305664,1762443872695,1340.48,0.00038639,120]
[393305665,1762443873063,1340.48,0.00038639,120]
[393305666,1762443873429,1340.48,0.00038639,120]
[393305667,1762443873902,1340.48,0.00038639,120]
[393305668,1762443874269,1340.48,0.00038639,120]
[393305669,1762443874668,1340.48,0.00038639,120]
[393305670,1762443875252,1340.48,0.00038639,120]
[393305671,1762443875424,1340.48,0.00038639,120]
[393305672,1762443875808,1340.48,0.00038639,120]
[393305673,1762443876210,1340.48,0.00038639,120]
[393305674,1762443876614,1340.48,0.00038639,120]
[393305675,1762443876988,1340.48,0.00038639,120]
[393305676,1762443877350,1340.48,0.00038639,120]
[393305677,1762443877751,1340.48,0.00038639,120]
[393305678,1762443878122,1340.57542951,0.00038639,120]
[393305684,1762444000729,500.0,0.00038639,120]
[393305685,1762444001102,290.7651752,0.00038639,120]
[393305845,1762444231950,-156.01,0.00015184,2]
[393305848,1762444231961,-156.01,0.00015755,2]
[393305850,1762444231970,-416.52,0.00016167,2]
[393305852,1762444231981,-175.83,0.00016183,2]
[393305853,1762444231990,-119.3105,0.00016264,2]
[393305854,1762444232001,-2029.0995,0.00016264,2]
[393305855,1762444232011,-156.01,0.00016327,2]
[393305856,1762444232020,-59.37729001,0.00016438,2]
[393305857,1762444232031,-1759.27270999,0.00016438,2]
[393305858,1762444232040,-250.0,0.00016481,2]
[393305859,1762444232050,-1000.0,0.00016537,2]
[393305860,1762444232059,-289.41,0.00016633,2]
[393305861,1762444232071,-250.0,0.00016702,2]
[393305862,1762444232080,-195.0,0.00016702,2]
[393305863,1762444232090,-1200.0,0.00016999,2]
[393305864,1762444232099,-300.0,0.00017019,2]
[393305865,1762444232109,-1852.42,0.0001702,2]
[393305866,1762444232118,-2490.0,0.00017034,2]
[393305867,1762444232127,-175.83,0.00017082,2]
[393305868,1762444232136,-2490.0,0.00017096,2]
[393305872,1762444232348,-550.0,0.00017221,2]
[393305874,1762444232358,-151.19137113,0.00017222,2]
[393305876,1762444232367,-157.79916549,0.00017222,2]
[393305878,1762444232376,-1000.0,0.00017222,2]
[393305880,1762444232386,-1000.0,0.000173,2]
[393305882,1762444232395,-151.0,0.00017301,2]
[393305884,1762444232404,-151.0,0.00017301,2]
[393305886,1762444232413,-151.0,0.00017301,2]
[393305888,1762444232422,-151.0,0.00017301,2]
[393305890,1762444232431,-151.0,0.00017301,2]
[393305892,1762444232440,-151.0,0.00017301,2]
[393305894,1762444232449,-151.0,0.00017301,2]
[393305896,1762444232458,-151.0,0.00017301,2]
[393305898,1762444232467,-147.09135939,0.00017301,2]
[393305900,1762444232479,-3.90864061,0.00017301,2]
[393305902,1762444232489,-151.0,0.00017301,2]
[393305904,1762444232499,-151.0,0.00017301,2]
[393305906,1762444232509,-151.0,0.00017301,2]
[393305908,1762444232518,-151.0,0.00017301,2]
[393305909,1762444232527,-151.0,0.00017301,2]
[393305910,1762444232536,-151.0,0.00017301,2]
[393305911,1762444232545,-151.0,0.00017301,2]
[393305912,1762444232553,-151.0,0.00017301,2]
[393305914,1762444232562,-151.0,0.00017301,2]
[393305916,1762444232573,-151.0,0.00017301,2]
[393305918,1762444232582,-151.0,0.00017301,2]
[393305920,1762444232592,-304.0,0.0001731,2]
[393305922,1762444232601,-376.36,0.00017312,3]
[393305924,1762444232610,-151.0,0.00017319,2]